[Event "Early-Titled-Tuesday-Blitz-March-05-2024"]
[Site "Chess.com"]
[Date "2024.03.05"]
[Round "5"]
[White "martinmena"]
[Black "dianamirza"]
[Result "1-0"]
[WhiteElo "2308"]
[BlackElo "1988"]
[TimeControl "180+1"]
[EndTime "8:57:25 PST"]
[Termination "martinmena won by checkmate"]

1. c4 {[%clk 0:02:13.1]} 1... c5 {[%clk 0:02:59.6]} 2. g3 {[%clk 0:02:13]} 2...
Nc6 {[%clk 0:03:00]} 3. Bg2 {[%clk 0:02:13.7]} 3... g6 {[%clk 0:02:59.5]} 4. Nc3
{[%clk 0:02:14.1]} 4... Bg7 {[%clk 0:02:55.2]} 5. e4 {[%clk 0:02:14.4]} 5... d6
{[%clk 0:02:55.6]} 6. Nge2 {[%clk 0:02:14.7]} 6... e5 {[%clk 0:02:55.1]} 7. O-O
{[%clk 0:02:15.3]} 7... f5 {[%clk 0:02:55.2]} 8. d3 {[%clk 0:02:15.3]} 8... Nge7
{[%clk 0:02:55.4]} 9. f4 {[%clk 0:02:14]} 9... O-O {[%clk 0:02:55.3]} 10. Be3
{[%clk 0:02:14.3]} 10... Nd4 {[%clk 0:02:50.4]} 11. Qd2 {[%clk 0:02:14]} 11...
fxe4 {[%clk 0:02:46.4]} 12. dxe4 {[%clk 0:02:06.5]} 12... Be6 {[%clk 0:02:43.9]}
13. b3 {[%clk 0:02:05.9]} 13... exf4 {[%clk 0:02:34.8]} 14. Nxf4 {[%clk
0:02:04.2]} 14... Bg4 {[%clk 0:02:23.8]} 15. h3 {[%clk 0:02:01.8]} 15... Bd7
{[%clk 0:02:12.6]} 16. Rad1 {[%clk 0:01:58.5]} 16... Nec6 {[%clk 0:02:07.3]} 17.
Ncd5 {[%clk 0:01:48.5]} 17... Qa5 {[%clk 0:02:01.6]} 18. Qxa5 {[%clk 0:01:34.8]}
18... Nxa5 {[%clk 0:02:02.5]} 19. Ne7+ {[%clk 0:01:30.7]} 19... Kh8 {[%clk
0:02:00.8]} 20. Nfxg6+ {[%clk 0:01:28.8]} 20... hxg6 {[%clk 0:01:58.8]} 21.
Nxg6+ {[%clk 0:01:29.7]} 21... Kg8 {[%clk 0:01:59]} 22. Nxf8 {[%clk 0:01:27.8]}
22... Rxf8 {[%clk 0:01:59.7]} 23. Kh2 {[%clk 0:01:22.7]} 23... Nac6 {[%clk
0:01:53.2]} 24. Rxf8+ {[%clk 0:01:19.9]} 24... Bxf8 {[%clk 0:01:51.7]} 25. b4
{[%clk 0:01:07.1]} 25... Bg7 {[%clk 0:01:41.6]} 26. bxc5 {[%clk 0:01:01.2]}
26... dxc5 {[%clk 0:01:40.2]} 27. Bf4 {[%clk 0:00:53.4]} 27... Na5 {[%clk
0:01:19.2]} 28. e5 {[%clk 0:00:49.1]} 28... Nxc4 {[%clk 0:01:14.1]} 29. Bd5+
{[%clk 0:00:49]} 29... Be6 {[%clk 0:01:12.2]} 30. Rxd4 {[%clk 0:00:48.3]} 30...
Nxe5 {[%clk 0:00:35.7]} 31. Bxe6+ {[%clk 0:00:45.5]} 31... Kf8 {[%clk
0:00:26.5]} 32. Re4 {[%clk 0:00:40.8]} 32... Nf3+ {[%clk 0:00:18.6]} 33. Kg2
{[%clk 0:00:41.3]} 33... Nd4 {[%clk 0:00:18.3]} 34. Bd5 {[%clk 0:00:38.6]} 34...
b5 {[%clk 0:00:15.6]} 35. Bd6# {[%clk 0:00:38.4]} 1-0

[Event "Early-Titled-Tuesday-Blitz-March-05-2024"]
[Site "Chess.com"]
[Date "2024.03.05"]
[Round "5"]
[White "chessamical"]
[Black "Igor_Lysyj"]
[Result "0-1"]
[WhiteElo "2151"]
[BlackElo "2814"]
[TimeControl "180+1"]
[EndTime "8:57:28 PST"]
[Termination "Igor_Lysyj won by resignation"]

1. d4 {[%clk 0:02:59.8]} 1... Nf6 {[%clk 0:02:58.5]} 2. Bf4 {[%clk 0:02:53.6]}
2... d5 {[%clk 0:02:57.8]} 3. e3 {[%clk 0:02:53.4]} 3... Bf5 {[%clk 0:02:57.6]}
4. c4 {[%clk 0:02:51.9]} 4... e6 {[%clk 0:02:57.4]} 5. Nc3 {[%clk 0:02:51.1]}
5... Nbd7 {[%clk 0:02:56.9]} 6. Nf3 {[%clk 0:02:47]} 6... Bb4 {[%clk 0:02:55.8]}
7. Qb3 {[%clk 0:02:44.8]} 7... c5 {[%clk 0:02:55.4]} 8. Rd1 {[%clk 0:02:36.5]}
8... Qa5 {[%clk 0:02:31]} 9. a3 {[%clk 0:02:31.2]} 9... Bxc3+ {[%clk 0:02:30.9]}
10. bxc3 {[%clk 0:02:31.8]} 10... O-O {[%clk 0:02:27.7]} 11. Be2 {[%clk
0:02:17.9]} 11... Ne4 {[%clk 0:02:24.7]} 12. cxd5 {[%clk 0:01:53.1]} 12... Nxc3
{[%clk 0:02:22.6]} 13. Bc7 {[%clk 0:01:52.5]} 13... Qxc7 {[%clk 0:02:18]} 14.
Qxc3 {[%clk 0:01:52.1]} 14... exd5 {[%clk 0:02:18.1]} 15. dxc5 {[%clk
0:01:50.6]} 15... Be4 {[%clk 0:02:11]} 16. Nd4 {[%clk 0:01:34.9]} 16... Qxc5
{[%clk 0:02:09.6]} 17. Qxc5 {[%clk 0:01:32.2]} 17... Nxc5 {[%clk 0:02:09.5]} 18.
f3 {[%clk 0:01:32.9]} 18... Bg6 {[%clk 0:02:09.5]} 19. Kf2 {[%clk 0:01:23.7]}
19... a6 {[%clk 0:02:09]} 20. h4 {[%clk 0:01:23.7]} 20... h6 {[%clk 0:02:04.1]}
21. g4 {[%clk 0:01:20.7]} 21... Rac8 {[%clk 0:01:56.3]} 22. h5 {[%clk
0:01:18.8]} 22... Bh7 {[%clk 0:01:56.1]} 23. Rhg1 {[%clk 0:01:18.9]} 23... f6
{[%clk 0:01:53.9]} 24. Nf5 {[%clk 0:00:39.6]} 24... Bxf5 {[%clk 0:01:49]} 25.
gxf5 {[%clk 0:00:40.5]} 25... Rfd8 {[%clk 0:01:49.3]} 26. Rg4 {[%clk 0:00:35.4]}
26... Kf8 {[%clk 0:01:45.1]} 27. Rgd4 {[%clk 0:00:32.8]} 27... b5 {[%clk
0:01:41.8]} 28. Rxd5 {[%clk 0:00:32.2]} 28... Rxd5 {[%clk 0:01:41.4]} 29. Rxd5
{[%clk 0:00:31.3]} 29... Ke7 {[%clk 0:01:41.8]} 30. Rd1 {[%clk 0:00:22.1]} 30...
Na4 {[%clk 0:01:36.7]} 31. Rg1 {[%clk 0:00:20.1]} 31... Kf8 {[%clk 0:01:35.8]}
32. Rd1 {[%clk 0:00:20]} 32... Rc2 {[%clk 0:01:35.4]} 33. Ke1 {[%clk 0:00:15.5]}
33... Nc3 {[%clk 0:01:27.9]} 34. Rd2 {[%clk 0:00:15.4]} 34... Rxd2 {[%clk
0:01:26.1]} 35. Kxd2 {[%clk 0:00:15.1]} 35... Nb1+ {[%clk 0:01:26.2]} 36. Kc2
{[%clk 0:00:15.5]} 36... Nxa3+ {[%clk 0:01:26.5]} 37. Kb3 {[%clk 0:00:16.1]}
37... Nb1 {[%clk 0:01:24.1]} 38. Kc2 {[%clk 0:00:16]} 38... Na3+ {[%clk
0:01:24.1]} 39. Kb3 {[%clk 0:00:16.6]} 39... Nc4 {[%clk 0:01:22]} 40. Bxc4
{[%clk 0:00:16.6]} 40... bxc4+ {[%clk 0:01:21.5]} 41. Kxc4 {[%clk 0:00:17.5]}
41... Ke7 {[%clk 0:01:21.7]} 42. Kc5 {[%clk 0:00:18.4]} 42... Kd7 {[%clk
0:01:21]} 43. Kb6 {[%clk 0:00:17.8]} 43... Kd6 {[%clk 0:01:21.4]} 44. Kxa6
{[%clk 0:00:16.8]} 44... Ke5 {[%clk 0:01:21.9]} 45. e4 {[%clk 0:00:16.5]} 45...
Kf4 {[%clk 0:01:21.8]} 46. Kb5 {[%clk 0:00:11.3]} 46... Kxf3 {[%clk 0:01:22]}
47. Kc5 {[%clk 0:00:10.3]} 47... Kxe4 {[%clk 0:01:22.3]} 48. Kd6 {[%clk
0:00:11.2]} 48... Kxf5 {[%clk 0:01:22.7]} 49. Ke7 {[%clk 0:00:12.1]} 49... Kg5
{[%clk 0:01:23.2]} 50. Kf7 {[%clk 0:00:13]} 50... f5 {[%clk 0:01:23.8]} 51. Kxg7
{[%clk 0:00:13]} 51... f4 {[%clk 0:01:24.4]} 0-1

[Event "Early-Titled-Tuesday-Blitz-March-05-2024"]
[Site "Chess.com"]
[Date "2024.03.05"]
[Round "5"]
[White "yuriydovzik"]
[Black "Chesstiger64"]
[Result "0-1"]
[WhiteElo "2099"]
[BlackElo "2354"]
[TimeControl "180+1"]
[EndTime "8:57:29 PST"]
[Termination "Chesstiger64 won on time"]

1. Nc3 {[%clk 0:02:56.5]} 1... c5 {[%clk 0:02:58.6]} 2. e4 {[%clk 0:02:52.8]}
2... g6 {[%clk 0:02:58.1]} 3. Nf3 {[%clk 0:02:50.3]} 3... Bg7 {[%clk 0:02:58]}
4. h4 {[%clk 0:02:47.2]} 4... d6 {[%clk 0:02:53.7]} 5. h5 {[%clk 0:02:46]} 5...
Nf6 {[%clk 0:02:53.9]} 6. h6 {[%clk 0:02:45.4]} 6... Bf8 {[%clk 0:02:54]} 7. d4
{[%clk 0:02:40.1]} 7... cxd4 {[%clk 0:02:53.4]} 8. Nxd4 {[%clk 0:02:39.7]} 8...
Nc6 {[%clk 0:02:53]} 9. Be2 {[%clk 0:02:30.9]} 9... e5 {[%clk 0:02:50.4]} 10.
Ndb5 {[%clk 0:02:23.1]} 10... a6 {[%clk 0:02:44.2]} 11. Na3 {[%clk 0:02:17.7]}
11... b5 {[%clk 0:02:44.3]} 12. Bg5 {[%clk 0:02:08.8]} 12... Be7 {[%clk
0:02:39.2]} 13. Bxf6 {[%clk 0:01:48.8]} 13... Bxf6 {[%clk 0:02:38.6]} 14. Nd5
{[%clk 0:01:48.4]} 14... Be6 {[%clk 0:02:34.9]} 15. c4 {[%clk 0:01:41.3]} 15...
b4 {[%clk 0:02:16.2]} 16. Nc2 {[%clk 0:01:37.7]} 16... a5 {[%clk 0:02:16.6]} 17.
b3 {[%clk 0:01:33.6]} 17... O-O {[%clk 0:02:15.6]} 18. Nxf6+ {[%clk 0:01:22.4]}
18... Qxf6 {[%clk 0:02:14.5]} 19. Qxd6 {[%clk 0:01:21.9]} 19... Rac8 {[%clk
0:02:11.8]} 20. Qd2 {[%clk 0:01:14.3]} 20... Rfd8 {[%clk 0:02:10.1]} 21. Qe3
{[%clk 0:01:14.3]} 21... Nd4 {[%clk 0:02:10.1]} 22. Nxd4 {[%clk 0:01:13.5]}
22... Rxd4 {[%clk 0:02:05.6]} 23. O-O {[%clk 0:01:09.1]} 23... g5 {[%clk
0:02:04.6]} 24. Rad1 {[%clk 0:01:01.9]} 24... Rcd8 {[%clk 0:01:40.6]} 25. Rxd4
{[%clk 0:01:01]} 25... exd4 {[%clk 0:01:39.3]} 26. e5 {[%clk 0:00:39.5]} 26...
Qxh6 {[%clk 0:01:35.9]} 27. Qe4 {[%clk 0:00:36.6]} 27... Qg6 {[%clk 0:01:15.2]}
28. Bd3 {[%clk 0:00:34.4]} 28... Kf8 {[%clk 0:01:05.8]} 29. Rd1 {[%clk 0:00:31]}
29... Qxe4 {[%clk 0:01:04]} 30. Bxe4 {[%clk 0:00:30.4]} 30... h6 {[%clk
0:01:03.1]} 31. f3 {[%clk 0:00:28.1]} 31... Ke7 {[%clk 0:01:03.2]} 32. Kf2
{[%clk 0:00:28.2]} 32... f5 {[%clk 0:01:03.5]} 33. exf6+ {[%clk 0:00:27.1]}
33... Kxf6 {[%clk 0:01:03.4]} 34. Ke2 {[%clk 0:00:26.6]} 34... Ke5 {[%clk
0:01:03.5]} 35. Rh1 {[%clk 0:00:24.9]} 35... Rh8 {[%clk 0:01:01.9]} 36. Kd3
{[%clk 0:00:22]} 36... h5 {[%clk 0:01:02]} 37. g3 {[%clk 0:00:20.7]} 37... h4
{[%clk 0:01:01.7]} 38. f4+ {[%clk 0:00:04.9]} 38... gxf4 {[%clk 0:01:00.3]} 39.
gxh4 {[%clk 0:00:04.6]} 39... Rg8 {[%clk 0:01:00.6]} 0-1

[Event "Early-Titled-Tuesday-Blitz-March-05-2024"]
[Site "Chess.com"]
[Date "2024.03.05"]
[Round "5"]
[White "Kumi29"]
[Black "KuzubovYuriy"]
[Result "0-1"]
[WhiteElo "2618"]
[BlackElo "2967"]
[TimeControl "180+1"]
[EndTime "8:57:32 PST"]
[Termination "KuzubovYuriy won by checkmate"]

1. d4 {[%clk 0:03:00.9]} 1... g6 {[%clk 0:02:59.4]} 2. h4 {[%clk 0:03:00.2]}
2... Nf6 {[%clk 0:02:58.9]} 3. Nc3 {[%clk 0:02:59.3]} 3... d5 {[%clk 0:02:58.8]}
4. Bg5 {[%clk 0:02:57.3]} 4... Bg7 {[%clk 0:02:58.6]} 5. e3 {[%clk 0:02:55.4]}
5... c5 {[%clk 0:02:56.1]} 6. h5 {[%clk 0:02:22.8]} 6... Nxh5 {[%clk 0:02:45.5]}
7. Rxh5 {[%clk 0:02:22.3]} 7... gxh5 {[%clk 0:02:45.2]} 8. Qxh5 {[%clk
0:02:22.9]} 8... cxd4 {[%clk 0:02:41]} 9. exd4 {[%clk 0:02:22.5]} 9... Bf5
{[%clk 0:02:39.1]} 10. O-O-O {[%clk 0:02:05.1]} 10... Nc6 {[%clk 0:02:35.7]} 11.
Nf3 {[%clk 0:01:54.5]} 11... Bg6 {[%clk 0:02:35.9]} 12. Qh4 {[%clk 0:01:50.5]}
12... Rc8 {[%clk 0:02:31]} 13. Re1 {[%clk 0:01:41.6]} 13... f6 {[%clk
0:02:14.3]} 14. Bxf6 {[%clk 0:01:37.5]} 14... Bxf6 {[%clk 0:02:11.4]} 15. Qxf6
{[%clk 0:01:37.2]} 15... Rf8 {[%clk 0:02:12]} 16. Qg7 {[%clk 0:01:32.2]} 16...
Qd6 {[%clk 0:01:56.8]} 17. Bb5 {[%clk 0:00:47.3]} 17... Rf7 {[%clk 0:01:37.7]}
18. Bxc6+ {[%clk 0:00:20.9]} 18... bxc6 {[%clk 0:01:31]} 19. Qh8+ {[%clk
0:00:10.5]} 19... Kd7 {[%clk 0:01:26.2]} 20. Ne5+ {[%clk 0:00:08.9]} 20... Kc7
{[%clk 0:01:24.8]} 21. Nxf7 {[%clk 0:00:08.2]} 21... Qf4+ {[%clk 0:01:24.8]} 22.
Kb1 {[%clk 0:00:07.7]} 22... Rxh8 {[%clk 0:01:24.6]} 23. Rxe7+ {[%clk
0:00:06.8]} 23... Kb8 {[%clk 0:01:19.4]} 24. Nxh8 {[%clk 0:00:07.4]} 24... Qxf2
{[%clk 0:01:13.9]} 25. a4 {[%clk 0:00:08]} 25... Bxc2+ {[%clk 0:01:07.4]} 26.
Ka1 {[%clk 0:00:07.5]} 26... Qf8 {[%clk 0:01:06.5]} 27. Re2 {[%clk 0:00:06]}
27... Bb3 {[%clk 0:00:59.5]} 28. Re3 {[%clk 0:00:03.7]} 28... Qxh8 {[%clk
0:00:57.9]} 29. Nb1 {[%clk 0:00:03.6]} 29... Bxa4 {[%clk 0:00:55.6]} 30. Nc3
{[%clk 0:00:04.2]} 30... Qxd4 {[%clk 0:00:53.1]} 31. Re8+ {[%clk 0:00:02]} 31...
Kc7 {[%clk 0:00:52.5]} 32. Re7+ {[%clk 0:00:02.9]} 32... Kb6 {[%clk 0:00:52.2]}
33. Rxh7 {[%clk 0:00:03.3]} 33... Bb3 {[%clk 0:00:51.6]} 34. Rh6 {[%clk
0:00:02.7]} 34... Qg1+ {[%clk 0:00:50.3]} 35. Nb1 {[%clk 0:00:03.2]} 35... Bc2
{[%clk 0:00:50.4]} 36. Ka2 {[%clk 0:00:03.1]} 36... Qxb1+ {[%clk 0:00:50.3]} 37.
Ka3 {[%clk 0:00:03.7]} 37... Qa1+ {[%clk 0:00:49.1]} 38. Kb4 {[%clk 0:00:04.3]}
38... Qxb2# {[%clk 0:00:49.6]} 0-1

[Event "Early-Titled-Tuesday-Blitz-March-05-2024"]
[Site "Chess.com"]
[Date "2024.03.05"]
[Round "5"]
[White "noblerone"]
[Black "IM_ArthurDW08"]
[Result "0-1"]
[WhiteElo "2516"]
[BlackElo "2784"]
[TimeControl "180+1"]
[EndTime "8:57:32 PST"]
[Termination "IM_ArthurDW08 won by resignation"]

1. d4 {[%clk 0:03:00.9]} 1... d5 {[%clk 0:02:59]} 2. Nf3 {[%clk 0:03:01.1]} 2...
Nf6 {[%clk 0:02:58.7]} 3. Bg5 {[%clk 0:03:01.5]} 3... Ne4 {[%clk 0:02:55.1]} 4.
Bf4 {[%clk 0:03:00.5]} 4... g6 {[%clk 0:02:50.1]} 5. Nbd2 {[%clk 0:02:54.2]}
5... Bg7 {[%clk 0:02:49.7]} 6. c3 {[%clk 0:02:48.8]} 6... O-O {[%clk 0:02:47.3]}
7. e3 {[%clk 0:02:41.2]} 7... c5 {[%clk 0:02:47.5]} 8. Bd3 {[%clk 0:02:40.3]}
8... Nxd2 {[%clk 0:02:46.4]} 9. Qxd2 {[%clk 0:02:37.6]} 9... Nc6 {[%clk
0:02:47.3]} 10. O-O {[%clk 0:02:32.6]} 10... Bg4 {[%clk 0:02:46.2]} 11. Be2
{[%clk 0:02:24.6]} 11... b6 {[%clk 0:02:32.6]} 12. h3 {[%clk 0:02:23.2]} 12...
Bxf3 {[%clk 0:02:27.7]} 13. Bxf3 {[%clk 0:02:23.2]} 13... e6 {[%clk 0:02:28.6]}
14. Rfd1 {[%clk 0:02:20.6]} 14... Rc8 {[%clk 0:02:27.4]} 15. Rac1 {[%clk
0:01:59.3]} 15... Qe7 {[%clk 0:02:22.7]} 16. e4 {[%clk 0:01:53.2]} 16... dxe4
{[%clk 0:02:09.2]} 17. Bxe4 {[%clk 0:01:53.2]} 17... cxd4 {[%clk 0:02:09.4]} 18.
Bxc6 {[%clk 0:01:40.7]} 18... Rxc6 {[%clk 0:01:58.8]} 19. cxd4 {[%clk
0:01:40.7]} 19... Rxc1 {[%clk 0:01:52.3]} 20. Rxc1 {[%clk 0:01:41.6]} 20... Qd7
{[%clk 0:01:24.6]} 21. Be3 {[%clk 0:01:38.1]} 21... Rd8 {[%clk 0:01:17]} 22. Rd1
{[%clk 0:01:27.5]} 22... Qd5 {[%clk 0:01:14.6]} 23. b3 {[%clk 0:01:23.5]} 23...
h5 {[%clk 0:01:13.8]} 24. Bg5 {[%clk 0:01:21.8]} 24... Rd7 {[%clk 0:01:12.7]}
25. Qf4 {[%clk 0:01:01.4]} 25... e5 {[%clk 0:00:52.7]} 26. Qh4 {[%clk
0:00:48.7]} 26... exd4 {[%clk 0:00:51.5]} 27. Bf6 {[%clk 0:00:48.8]} 27... d3
{[%clk 0:00:44.3]} 28. Bxg7 {[%clk 0:00:42]} 28... Kxg7 {[%clk 0:00:44]} 29. Qf4
{[%clk 0:00:39.7]} 29... d2 {[%clk 0:00:38.2]} 30. g3 {[%clk 0:00:22.2]} 30...
Qd3 {[%clk 0:00:35.6]} 31. Kh2 {[%clk 0:00:20.2]} 31... Qe2 {[%clk 0:00:34.1]}
0-1

[Event "Early-Titled-Tuesday-Blitz-March-05-2024"]
[Site "Chess.com"]
[Date "2024.03.05"]
[Round "5"]
[White "enriquebutti"]
[Black "Boorchess"]
[Result "1-0"]
[WhiteElo "2209"]
[BlackElo "2513"]
[TimeControl "180+1"]
[EndTime "8:57:32 PST"]
[Termination "enriquebutti won on time"]

1. d4 {[%clk 0:03:00.2]} 1... d5 {[%clk 0:02:59.6]} 2. c4 {[%clk 0:02:59.6]}
2... e5 {[%clk 0:02:59.5]} 3. dxe5 {[%clk 0:02:59]} 3... d4 {[%clk 0:02:59.7]}
4. Nf3 {[%clk 0:02:58.7]} 4... Nc6 {[%clk 0:02:59.7]} 5. g3 {[%clk 0:02:58.5]}
5... Nge7 {[%clk 0:02:59.2]} 6. Bg2 {[%clk 0:02:57.3]} 6... Ng6 {[%clk 0:02:59]}
7. O-O {[%clk 0:02:56.7]} 7... Ngxe5 {[%clk 0:02:58.3]} 8. Nbd2 {[%clk
0:02:54.1]} 8... Be7 {[%clk 0:02:47.1]} 9. Nxe5 {[%clk 0:02:45.9]} 9... Nxe5
{[%clk 0:02:46.6]} 10. b4 {[%clk 0:02:45.3]} 10... O-O {[%clk 0:02:39.4]} 11. a3
{[%clk 0:02:42.7]} 11... Bg4 {[%clk 0:01:57.5]} 12. Bxb7 {[%clk 0:02:26.6]}
12... d3 {[%clk 0:01:30.6]} 13. Bf3 {[%clk 0:02:25.4]} 13... Nxf3+ {[%clk
0:01:19.1]} 14. exf3 {[%clk 0:02:24.7]} 14... Bf6 {[%clk 0:01:14.7]} 15. fxg4
{[%clk 0:02:15]} 15... Bxa1 {[%clk 0:01:14.2]} 16. Nb3 {[%clk 0:02:13.3]} 16...
Bc3 {[%clk 0:01:11.4]} 17. Bd2 {[%clk 0:02:07.7]} 17... Qf6 {[%clk 0:00:56.2]}
18. g5 {[%clk 0:01:55.5]} 18... Qe6 {[%clk 0:00:46.8]} 19. Bxc3 {[%clk
0:01:52.7]} 19... Qxc4 {[%clk 0:00:46.8]} 20. Bd2 {[%clk 0:01:45.1]} 20... Rfe8
{[%clk 0:00:45]} 21. Nc5 {[%clk 0:01:41.2]} 21... Rad8 {[%clk 0:00:42]} 22. Be3
{[%clk 0:01:32.8]} 22... a5 {[%clk 0:00:38]} 23. Qb3 {[%clk 0:01:29.8]} 23...
Qxb3 {[%clk 0:00:37.1]} 24. Nxb3 {[%clk 0:01:29.2]} 24... axb4 {[%clk
0:00:36.9]} 25. axb4 {[%clk 0:01:28.6]} 25... Re4 {[%clk 0:00:35.8]} 26. Bd2
{[%clk 0:01:24.3]} 26... Ra8 {[%clk 0:00:25.2]} 27. Rc1 {[%clk 0:01:18.2]} 27...
Re7 {[%clk 0:00:20.1]} 28. Rc3 {[%clk 0:01:13.3]} 28... Rd8 {[%clk 0:00:15.9]}
29. Kg2 {[%clk 0:01:11]} 29... f6 {[%clk 0:00:14.3]} 30. gxf6 {[%clk 0:01:08.6]}
30... gxf6 {[%clk 0:00:14.5]} 31. Kf3 {[%clk 0:01:02.2]} 31... Kf7 {[%clk
0:00:09.7]} 32. Be3 {[%clk 0:00:54]} 32... Rdd7 {[%clk 0:00:04.1]} 33. Nd4
{[%clk 0:00:48.7]} 33... d2 {[%clk 0:00:03.1]} 34. Rd3 {[%clk 0:00:47.3]} 1-0

[Event "Early-Titled-Tuesday-Blitz-March-05-2024"]
[Site "Chess.com"]
[Date "2024.03.05"]
[Round "5"]
[White "Dinosaurio_1975"]
[Black "Masterbeaterr"]
[Result "1-0"]
[WhiteElo "2588"]
[BlackElo "2441"]
[TimeControl "180+1"]
[EndTime "8:57:36 PST"]
[Termination "Dinosaurio_1975 won by resignation"]

1. e4 {[%clk 0:03:00.9]} 1... e5 {[%clk 0:02:59.7]} 2. Nf3 {[%clk 0:02:59.3]}
2... Nc6 {[%clk 0:02:59.8]} 3. Nc3 {[%clk 0:02:57.4]} 3... Bb4 {[%clk
0:02:58.8]} 4. Nd5 {[%clk 0:02:55.9]} 4... Nf6 {[%clk 0:02:58.7]} 5. Nxb4 {[%clk
0:02:52.5]} 5... Nxb4 {[%clk 0:02:59.6]} 6. d3 {[%clk 0:02:44.6]} 6... d5 {[%clk
0:02:56.7]} 7. Nxe5 {[%clk 0:02:30.4]} 7... dxe4 {[%clk 0:02:54.7]} 8. Be2
{[%clk 0:02:25]} 8... exd3 {[%clk 0:02:48.2]} 9. Nxd3 {[%clk 0:02:24.3]} 9...
Nxd3+ {[%clk 0:02:47.6]} 10. Qxd3 {[%clk 0:02:24.3]} 10... Qxd3 {[%clk
0:02:46.4]} 11. Bxd3 {[%clk 0:02:25.2]} 11... O-O {[%clk 0:02:46.6]} 12. O-O
{[%clk 0:02:24.9]} 12... Bg4 {[%clk 0:02:44.3]} 13. Bf4 {[%clk 0:02:21.1]} 13...
c6 {[%clk 0:02:35.5]} 14. Rfe1 {[%clk 0:02:20]} 14... Rfe8 {[%clk 0:02:35.2]}
15. Be5 {[%clk 0:02:06.1]} 15... Nd5 {[%clk 0:02:32.3]} 16. Bd4 {[%clk
0:01:38.5]} 16... b6 {[%clk 0:02:17.8]} 17. Be4 {[%clk 0:01:34.3]} 17... f6
{[%clk 0:02:06.1]} 18. f3 {[%clk 0:01:30.8]} 18... Bd7 {[%clk 0:02:02.1]} 19.
Kf2 {[%clk 0:01:29.9]} 19... f5 {[%clk 0:01:50.1]} 20. Bxd5+ {[%clk 0:01:25.4]}
20... cxd5 {[%clk 0:01:50.1]} 21. h4 {[%clk 0:01:25.9]} 21... Kf7 {[%clk
0:01:48.8]} 22. Kg3 {[%clk 0:01:25.7]} 22... g6 {[%clk 0:01:48.1]} 23. Kf4
{[%clk 0:01:25]} 23... h6 {[%clk 0:01:37.4]} 24. c3 {[%clk 0:01:22]} 24... Bc6
{[%clk 0:01:37.5]} 25. Be5 {[%clk 0:01:15.9]} 25... Bb5 {[%clk 0:01:33]} 26.
Rad1 {[%clk 0:01:14.5]} 26... Bc6 {[%clk 0:01:31.8]} 27. h5 {[%clk 0:01:08.5]}
27... Re6 {[%clk 0:01:29.3]} 28. hxg6+ {[%clk 0:01:08.2]} 28... Kxg6 {[%clk
0:01:30.2]} 29. Bd4 {[%clk 0:01:05.7]} 29... Rae8 {[%clk 0:01:28.9]} 30. Rxe6+
{[%clk 0:01:05.3]} 30... Rxe6 {[%clk 0:01:29.8]} 31. Be5 {[%clk 0:01:05.8]}
31... h5 {[%clk 0:01:27.2]} 32. Ra1 {[%clk 0:00:51.5]} 32... Re8 {[%clk
0:01:24.1]} 33. a4 {[%clk 0:00:50.8]} 33... a6 {[%clk 0:01:21.6]} 34. a5 {[%clk
0:00:46.1]} 34... b5 {[%clk 0:01:21.7]} 35. g3 {[%clk 0:00:42.4]} 35... Bb7
{[%clk 0:01:12.7]} 36. Re1 {[%clk 0:00:31.4]} 36... Bc6 {[%clk 0:01:12.4]} 37.
Re3 {[%clk 0:00:30.9]} 37... Bb7 {[%clk 0:01:11.8]} 38. Bc7 {[%clk 0:00:20.3]}
38... Rxe3 {[%clk 0:00:57.2]} 39. Kxe3 {[%clk 0:00:21.2]} 39... d4+ {[%clk
0:00:57.5]} 40. Kxd4 {[%clk 0:00:18.9]} 40... Bxf3 {[%clk 0:00:56.6]} 41. Kc5
{[%clk 0:00:19]} 41... Bb7 {[%clk 0:00:54.2]} 42. Kb6 {[%clk 0:00:18.7]} 42...
Bc8 {[%clk 0:00:54.8]} 43. Bf4 {[%clk 0:00:18.9]} 43... Kf6 {[%clk 0:00:51.9]}
44. Kc7 {[%clk 0:00:19.1]} 44... Be6 {[%clk 0:00:51.7]} 45. Kb7 {[%clk
0:00:19.7]} 45... Ke7 {[%clk 0:00:51]} 46. Kxa6 {[%clk 0:00:20]} 46... Kd7
{[%clk 0:00:51.9]} 47. Kxb5 {[%clk 0:00:19.1]} 1-0